fUSD/lending_fUSD_20250615
["ID","MTS","AMOUNT","RATE_DAILY","PERIOD"]
[365834998,1749949844636,-1457.01,0.00016997,2]
[365834999,1749949844645,-490.0,0.00016997,2]
[365835000,1749949844655,-490.0,0.00016997,2]
[365835001,1749949844664,-490.0,0.00016997,2]
[365835002,1749949844674,-2870.43,0.00016997,2]
[365835003,1749949844684,-515.12,0.00016997,2]
[365835004,1749949844694,-500.0,0.00016997,2]
[365835005,1749949844704,-1694.3,0.00016997,2]
[365835006,1749949844714,-500.0,0.00016997,2]
[365835007,1749949844723,-500.0,0.00016997,2]
[365835008,1749949844733,-7476.71,0.00016997,2]
[365835009,1749949844743,-6310.34,0.00016997,2]
[365835010,1749949844752,-490.0,0.00016997,2]
[365835011,1749949844762,-8345.22,0.00016997,2]
[365835012,1749949844772,-490.0,0.00016997,2]
[365835013,1749949844782,-14239.78,0.00016997,2]
[365835014,1749949844793,-502.26,0.00016997,2]
[365835015,1749949844803,-2908.55,0.00016997,2]
[365835016,1749949844812,-490.0,0.00016997,2]
[365835017,1749949844822,-802.78,0.00016997,2]
[365835018,1749949844831,-490.0,0.00016997,2]
[365835019,1749949844841,-490.0,0.00016997,2]
[365835020,1749949844851,-1384.53,0.00016997,2]
[365835021,1749949844860,-490.0,0.00016997,2]
[365835022,1749949844870,-12309.28,0.00016997,2]
[365835023,1749949844879,-490.0,0.00016997,2]
[365835024,1749949844888,-981.76,0.00016997,2]
[365835025,1749949844898,-490.0,0.00016997,2]
[365835026,1749949844908,-490.0,0.00016997,2]
[365835027,1749949844917,-490.0,0.00016997,2]
[365835028,1749949844927,-817.71,0.00016997,2]
[365835029,1749949844936,-490.0,0.00016997,2]
[365835030,1749949844946,-490.0,0.00016997,2]
[365835031,1749949844956,-2119.08,0.00016997,2]
[365835032,1749949844967,-429.44165882,0.00016997,2]
[365835033,1749949844977,-490.0,0.00016997,2]
[365835034,1749949844986,-490.0,0.00016997,2]
[365835035,1749949844996,-1945.52,0.00016997,2]
[365835036,1749949845006,-9201.36,0.00016997,2]
[365835037,1749949845015,-672.18,0.00016997,2]
[365835038,1749949845026,-490.0,0.00016997,2]
[365835039,1749949845038,-490.0,0.00016997,2]
[365835040,1749949845048,-20689.93,0.00016997,2]
[365835041,1749949845057,-490.0,0.00016997,2]
[365835042,1749949845067,-5784.26,0.00016997,2]
[365835043,1749949845077,-490.0,0.00016997,2]
[365835044,1749949845087,-490.0,0.00016997,2]
[365835045,1749949845096,-10331.18,0.00016997,2]
[365835046,1749949845105,-2006.41,0.00016997,2]
[365835047,1749949845115,-490.0,0.00016997,2]
[365835048,1749949845126,-490.0,0.00016997,2]
[365835049,1749949845135,-490.0,0.00016997,2]
[365835050,1749949845144,-490.0,0.00016997,2]
[365835051,1749949845154,-490.0,0.00016997,2]
[365835052,1749949845164,-873.5,0.00016997,2]
[365835053,1749949845173,-783.54,0.00016997,2]
[365835054,1749949845183,-490.0,0.00016997,2]
[365835055,1749949845193,-873.5,0.00016997,2]
[365835056,1749949845203,-25352.31,0.00016997,2]
[365835057,1749949845213,-490.0,0.00016997,2]
[365835058,1749949845222,-490.0,0.00016997,2]
[365835059,1749949845232,-490.0,0.00016997,2]
[365835060,1749949845242,-1361.04,0.00016997,2]
[365835061,1749949845252,-490.0,0.00016997,2]
[365835062,1749949845262,-490.0,0.00016997,2]
[365835063,1749949845272,-490.0,0.00016997,2]
[365835064,1749949845283,-490.0,0.00016997,2]
[365835065,1749949845293,-490.0,0.00016997,2]
[365835066,1749949845303,-2879.92,0.00016997,2]
[365835067,1749949845314,-490.0,0.00016997,2]
[365835068,1749949845324,-7316.35,0.00016997,2]
[365835069,1749949845334,-1463.31,0.00016997,2]
[365835070,1749949845343,-490.0,0.00016997,2]
[365835071,1749949845354,-490.0,0.00016997,2]
[365835072,1749949845364,-490.0,0.00016997,2]
[365835073,1749949845374,-490.0,0.00016997,2]
[365835074,1749949845384,-2316.52,0.00016997,2]
[365835076,1749949845394,-490.0,0.00016997,2]
[365835078,1749949845404,-490.0,0.00016997,2]
[365835080,1749949845414,-524.26324058,0.00016997,2]
[365835082,1749949845423,-16617.35,0.00016997,2]
[365835084,1749949845434,-16617.35,0.00016997,2]
[365835086,1749949845444,-16617.35,0.00016997,2]
[365835087,1749949845454,-490.0,0.00016997,2]
[365835089,1749949845465,-490.0,0.00016997,2]
[365835091,1749949845475,-4858.04,0.00016997,2]
[365835092,1749949845485,-490.0,0.00016997,2]
[365835093,1749949845495,-490.0,0.00016997,2]
[365835094,1749949845505,-490.0,0.00016997,2]
[365835095,1749949845514,-2874.58,0.00016997,2]
[365835096,1749949845525,-1424.99,0.00016997,2]
[365835097,1749949845536,-1334.1,0.00016997,2]
[365835098,1749949845545,-490.0,0.00016997,2]
[365835099,1749949845555,-483.18985821,0.00016997,2]
[365835102,1749949845564,-6594.65,0.00016997,2]
[365835104,1749949845574,-547.63625072,0.00016997,2]
[365835106,1749949845583,-599.0,0.00016997,2]
[365835108,1749949845593,-490.0,0.00016997,2]
[365835110,1749949845603,-490.0,0.00016997,2]
[365835112,1749949845612,-490.0,0.00016997,2]
[365835114,1749949845621,-1575.03,0.00016997,2]
[365835116,1749949845631,-490.0,0.00016997,2]
[365835118,1749949845640,-491.2434607,0.00016997,2]
[365835119,1749949845653,-501.36343965,0.00016997,2]
[365835120,1749949845664,-490.0,0.00016997,2]
[365835121,1749949845673,-1624.27,0.00016997,2]
[365835122,1749949845683,-490.0,0.00016997,2]
[365835123,1749949845693,-1637.36,0.00016997,2]
[365835124,1749949845702,-490.0,0.00016997,2]
[365835125,1749949845712,-384.67006063,0.00016997,2]
[365835126,1749949845722,-4258.76,0.00016997,2]
[365835127,1749949845732,-490.0,0.00016997,2]
[365835128,1749949845742,-490.0,0.00016997,2]
[365835129,1749949845751,-490.0,0.00016997,2]
[365835130,1749949845760,-500.0,0.00016997,2]
[365835131,1749949845770,-500.0,0.00016997,2]
[365835132,1749949845780,-2030.7,0.00016997,2]
[365835133,1749949845789,-500.0,0.00016997,2]
[365835134,1749949845798,-490.0,0.00016997,2]
[365835135,1749949845807,-2460.8,0.00016997,2]
[365835136,1749949845816,-490.0,0.00016997,2]
[365835137,1749949845826,-490.0,0.00016997,2]
[365835138,1749949845835,-490.0,0.00016997,2]
[365835139,1749949845844,-490.0,0.00016997,2]
[365835140,1749949845853,-1636.13,0.00016997,2]
[365835141,1749949845863,-474.34155271,0.00016997,2]
[365835142,1749949845871,-490.0,0.00016997,2]
[365835143,1749949845880,-2308.93,0.00016997,2]
[365835144,1749949845890,-490.0,0.00016997,2]
[365835145,1749949845900,-1805.44,0.00016997,2]
[365835146,1749949845911,-490.0,0.00016997,2]
[365835147,1749949845920,-4729.63,0.00016997,2]
[365835148,1749949845929,-9148.86,0.00016997,2]
[365835149,1749949845940,-490.0,0.00016997,2]
[365835150,1749949845950,-1098.23,0.00016997,2]
[365835151,1749949845964,-447.3821114,0.00016997,2]
[365835152,1749949845974,-490.0,0.00016997,2]
[365835153,1749949845984,-490.0,0.00016997,2]
[365835154,1749949845994,-490.0,0.00016997,2]
[365835155,1749949846007,-493.34901741,0.00016997,2]
[365835156,1749949846017,-490.0,0.00016997,2]
[365835157,1749949846029,-490.0,0.00016997,2]
[365835158,1749949846039,-490.0,0.00016998,2]
[365835159,1749949846049,-490.0,0.00016998,2]
[365835160,1749949846059,-490.0,0.00016998,2]
[365835161,1749949846068,-490.0,0.00016998,2]
[365835163,1749949846499,-1311.75,0.00016998,2]
[365835164,1749949846509,-490.0,0.00016998,2]
[365835165,1749949846519,-1311.75,0.00016998,2]
[365835166,1749949846528,-490.0,0.00016998,2]
[365835167,1749949846538,-490.0,0.00016998,2]
[365835168,1749949846547,-1311.75,0.00016998,2]
[365835169,1749949846557,-490.0,0.00016998,2]
[365835170,1749949846566,-490.0,0.00016998,2]
[365835171,1749949846576,-1311.75,0.00016998,2]
[365835172,1749949846585,-490.0,0.00016998,2]
[365835173,1749949846595,-1311.75,0.00016998,2]
[365835174,1749949846604,-490.0,0.00016998,2]
[365835175,1749949846614,-490.0,0.00016998,2]
[365835176,1749949846624,-1311.75,0.00016998,2]
[365835177,1749949846633,-490.0,0.00016998,2]
[365835178,1749949846643,-490.0,0.00016998,2]
[365835179,1749949846653,-1311.75,0.00016998,2]
[365835180,1749949846662,-490.0,0.00016998,2]
[365835181,1749949846671,-490.0,0.00016998,2]
[365835182,1749949846681,-1311.75,0.00016998,2]
[365835183,1749949846691,-527.19929728,0.00016998,2]
[365835184,1749949846700,-490.0,0.00016998,2]
[365835185,1749949846710,-1311.75,0.00016998,2]
[365835186,1749949846719,-490.0,0.00016998,2]
[365835187,1749949846729,-1311.75,0.00016998,2]
[365835188,1749949846739,-490.0,0.00016998,2]
[365835189,1749949846748,-1311.75,0.00016998,2]
[365835190,1749949846757,-490.0,0.00016998,2]
[365835191,1749949846767,-1311.75,0.00016998,2]
[365835192,1749949846777,-490.0,0.00016998,2]
[365835193,1749949846787,-1311.75,0.00016998,2]
[365835194,1749949846797,-340.06497228,0.00016998,2]
[365835195,1749949846806,-490.0,0.00016998,2]
[365835196,1749949846816,-1311.75,0.00016998,2]
[365835197,1749949846826,-490.0,0.00016998,2]
[365835198,1749949846836,-1311.75,0.00016998,2]
[365835199,1749949846846,-490.0,0.00016998,2]
[365835200,1749949846856,-1311.75,0.00016998,2]
[365835201,1749949846866,-446.12965886,0.00016998,2]
[365835202,1749949846876,-1311.75,0.00016998,2]
[365835203,1749949846885,-1311.75,0.00016998,2]
[365835204,1749949846894,-1311.75,0.00016998,2]
[365835205,1749949846904,-1311.75,0.00016998,2]
[365835206,1749949846914,-1311.75,0.00016998,2]
[365835207,1749949846923,-1311.75,0.00016998,2]
[365835208,1749949846933,-484.19352395,0.00016998,2]
[365835209,1749949846956,-827.55647605,0.00016998,2]
[365835210,1749949846968,-1311.79706914,0.00016998,2]
[365835211,1749949846978,-490.0,0.00016998,2]
[365835212,1749949846988,-490.0,0.00016998,2]
[365835213,1749949846998,-490.0,0.00016998,2]
[365835214,1749949847008,-1479.19,0.00016998,2]
[365835215,1749949847018,-3710.43,0.00016998,2]
[365835216,1749949847027,-490.0,0.00016998,2]
[365835217,1749949847038,-490.0,0.00016998,2]
[365835218,1749949847048,-490.0,0.00016998,2]
[365835219,1749949847057,-490.0,0.00016998,2]
[365835220,1749949847067,-2660.54,0.00016998,2]
[365835221,1749949847077,-1921.59,0.00016998,2]
[365835222,1749949847088,-490.0,0.00016998,2]
[365835223,1749949847098,-490.0,0.00016998,2]
[365835224,1749949847107,-808.12,0.00016998,2]
[365835225,1749949847116,-490.0,0.00016998,2]
[365835226,1749949847126,-490.0,0.00016998,2]
[365835227,1749949847135,-492.39010143,0.00016998,2]
[365835228,1749949847145,-557.17135544,0.00016998,2]
[365835229,1749949847156,-490.0,0.00016998,2]
[365835230,1749949847165,-490.0,0.00016998,2]
[365835231,1749949847175,-490.0,0.00016998,2]
[365835232,1749949847186,-490.0,0.00016998,2]
[365835233,1749949847196,-1000.0,0.00016998,2]
[365835234,1749949847205,-926.05,0.00016998,2]
[365835235,1749949847215,-521.12293873,0.00016998,2]
[365835236,1749949847224,-490.0,0.00016998,2]
[365835237,1749949847234,-490.0,0.00016998,2]
[365835238,1749949847244,-2495.76,0.00016998,2]
[365835239,1749949847253,-490.0,0.00016998,2]
[365835240,1749949847263,-796.56,0.00016998,2]
[365835241,1749949847274,-490.0,0.00016998,2]
[365835242,1749949847284,-490.0,0.00016998,2]
[365835243,1749949847293,-490.0,0.00016998,2]
[365835244,1749949847303,-490.0,0.00016998,2]
[365835245,1749949847312,-490.0,0.00016998,2]
[365835246,1749949847323,-490.0,0.00016998,2]
[365835247,1749949847333,-490.0,0.00016998,2]
[365835248,1749949847342,-490.0,0.00016998,2]
[365835249,1749949847352,-490.0,0.00016998,2]
[365835250,1749949847361,-694.01,0.00016998,2]
[365835251,1749949847370,-547.93329409,0.00016998,2]
[365835252,1749949847380,-540.63,0.00016998,2]
[365835253,1749949847389,-2738.18,0.00016998,2]
[365835254,1749949847399,-651.1,0.00016998,2]
[365835255,1749949847408,-490.0,0.00016998,2]
[365835256,1749949847418,-562.74111625,0.00016998,2]
[365835257,1749949847428,-490.0,0.00016998,2]
[365835258,1749949847437,-490.0,0.00016998,2]
[365835259,1749949847447,-464.09079925,0.00016998,2]
[365835260,1749949847457,-490.0,0.00016998,2]
[365835261,1749949847466,-490.0,0.00016998,2]
[365835262,1749949847475,-667.68,0.00016998,2]
[365835263,1749949847485,-490.0,0.00016998,2]
[365835264,1749949847494,-1149.0,0.00016998,2]
[365835265,1749949847503,-675.29,0.00016998,2]
[365835266,1749949847513,-490.0,0.00016998,2]
[365835267,1749949847522,-490.0,0.00016998,2]
[365835268,1749949847533,-490.0,0.00016998,2]
[365835269,1749949847542,-3039.2,0.00016998,2]
[365835270,1749949847552,-490.0,0.00016998,2]
[365835271,1749949847561,-490.0,0.00016998,2]
[365835272,1749949847570,-490.0,0.00016998,2]
[365835273,1749949847580,-170.71874724,0.00016998,2]
[365835274,1749949847589,-490.0,0.00016998,2]
[365835275,1749949847599,-1652.2,0.00016998,2]
[365835276,1749949847608,-490.0,0.00016998,2]
[365835277,1749949847618,-490.0,0.00016998,2]
[365835278,1749949847627,-490.0,0.00016998,2]
[365835279,1749949847637,-490.0,0.00016998,2]
[365835280,1749949847646,-490.0,0.00016998,2]
[365835281,1749949847655,-485.96,0.00016998,2]
[365835282,1749949847665,-490.0,0.00016998,2]
[365835283,1749949847674,-358.95563307,0.00016998,2]
[365835284,1749949847683,-1977.44,0.00016998,2]
[365835285,1749949847692,-572.16,0.00016998,2]
[365835286,1749949847701,-1947.73,0.00016998,2]
[365835287,1749949847711,-1519.21,0.00016998,2]
[365835288,1749949847720,-490.0,0.00016998,2]
[365835289,1749949847729,-630.29,0.00016998,2]
[365835290,1749949847739,-490.0,0.00016998,2]
[365835291,1749949847748,-1012.99,0.00016998,2]
[365835292,1749949847757,-490.0,0.00016998,2]
[365835293,1749949847767,-490.1682735,0.00016998,2]
[365835294,1749949847777,-490.0,0.00016998,2]
[365835295,1749949847786,-490.0,0.00016998,2]
[365835296,1749949847796,-490.0,0.00016998,2]
[365835297,1749949847805,-491.20778612,0.00016998,2]
[365835298,1749949847815,-490.0,0.00016998,2]
[365835299,1749949847824,-149.17485815,0.00016998,2]
[365835300,1749949847843,-588.03514185,0.00016998,2]
[365835301,1749949847853,-1384.43,0.00016998,2]
[365835302,1749949847864,-490.0,0.00016998,2]
[365835303,1749949847874,-1054.73,0.00016998,2]
[365835304,1749949847883,-490.75799134,0.00016998,2]
[365835305,1749949847893,-490.0,0.00016998,2]
[365835306,1749949847902,-490.0,0.00016998,2]
[365835307,1749949847911,-490.0,0.00016998,2]
[365835308,1749949847920,-490.0,0.00016998,2]
[365835309,1749949847930,-914.86,0.00016998,2]
[365835310,1749949847940,-490.0,0.00016998,2]
[365835311,1749949847949,-498.57,0.00016998,2]
[365835312,1749949847961,-520.38,0.00016998,2]
[365835313,1749949847971,-979.3,0.00016998,2]
[365835314,1749949847980,-394.68227346,0.00016998,2]
[365835315,1749949847994,-95.66397195,0.00016998,2]
[365835316,1749949848006,-206.64237845,0.00016998,2]
[365835317,1749949848107,-3107.72762155,0.00016998,2]
[365835318,1749949848118,-490.0,0.00016998,2]
[365835319,1749949848128,-916.46,0.00016998,2]
[365835320,1749949848138,-490.0,0.00016998,2]
[365835321,1749949848147,-490.0,0.00016998,2]
[365835322,1749949848156,-490.0,0.00016998,2]
[365835323,1749949848166,-490.0,0.00016998,2]
[365835324,1749949848175,-1537.01,0.00016998,2]
[365835325,1749949848185,-490.0,0.00016998,2]
[365835326,1749949848195,-490.0,0.00016998,2]
[365835327,1749949848204,-490.0,0.00016998,2]
[365835328,1749949848214,-795.04,0.00016998,2]
[365835329,1749949848224,-490.0,0.00016998,2]
[365835330,1749949848235,-336.86261573,0.00016998,2]
[365835331,1749949848244,-490.0,0.00016998,2]
[365835332,1749949848254,-490.0,0.00016998,2]
[365835333,1749949848264,-490.0,0.00016998,2]
[365835334,1749949848274,-917.44,0.00016998,2]
[365835335,1749949848284,-490.0,0.00016998,2]
[365835336,1749949848293,-490.0,0.00016998,2]
[365835337,1749949848303,-573.90309572,0.00016998,2]
[365835338,1749949848313,-490.0,0.00016998,2]
[365835339,1749949848325,-490.0,0.00016998,2]
[365835340,1749949848334,-1967.59,0.00016998,2]
[365835341,1749949848344,-534.49452546,0.00016998,2]
[365835342,1749949848354,-490.96258366,0.00016998,2]
[365835343,1749949848363,-490.0,0.00016998,2]
[365835344,1749949848372,-490.0,0.00016998,2]
[365835345,1749949848382,-3300.36,0.00016998,2]
[365835346,1749949848392,-490.0,0.00016998,2]
[365835347,1749949848402,-484.05232933,0.00016998,2]
[365835348,1749949848411,-1331.95,0.00016998,2]
[365835349,1749949848421,-490.0,0.00016998,2]
[365835350,1749949848431,-490.0,0.00016998,2]
[365835351,1749949848441,-490.0,0.00016998,2]
[365835352,1749949848450,-490.0,0.00016998,2]
[365835353,1749949848459,-1374.67,0.00016998,2]
[365835354,1749949848469,-678.35,0.00016998,2]
[365835355,1749949848479,-490.0,0.00016998,2]
[365835356,1749949848488,-490.0,0.00016998,2]
[365835357,1749949848498,-490.0,0.00016998,2]
[365835358,1749949848507,-490.0,0.00016998,2]
[365835359,1749949848517,-2290.66,0.00016998,2]
[365835360,1749949848526,-490.0,0.00016998,2]
[365835361,1749949848536,-490.0,0.00016998,2]
[365835362,1749949848546,-490.0,0.00016998,2]
[365835363,1749949848556,-1206.34,0.00016998,2]
[365835364,1749949848566,-2036.25,0.00016998,2]
[365835365,1749949848575,-1373.88,0.00016998,2]
[365835366,1749949848585,-914.3,0.00016998,2]
[365835367,1749949848594,-490.0,0.00016998,2]
[365835368,1749949848604,-490.0,0.00016998,2]
[365835369,1749949848613,-2469.28,0.00016998,2]
[365835370,1749949848623,-552.76,0.00016998,2]
[365835371,1749949848632,-490.0,0.00016998,2]
[365835372,1749949848641,-490.0,0.00016998,2]
[365835373,1749949848651,-490.0,0.00016998,2]
[365835374,1749949848660,-3086.59,0.00016998,2]
[365835375,1749949848670,-490.0,0.00016998,2]
[365835376,1749949848680,-490.0,0.00016998,2]
[365835377,1749949848689,-2738.95,0.00016998,2]
[365835378,1749949848698,-490.0,0.00016998,2]
[365835379,1749949848708,-490.0,0.00016998,2]
[365835380,1749949848717,-490.0,0.00016998,2]
[365835381,1749949848726,-964.23,0.00016998,2]
[365835382,1749949848736,-2343.01,0.00016998,2]
[365835383,1749949848746,-490.0,0.00016998,2]
[365835384,1749949848763,-490.0,0.00016998,2]
[365835385,1749949848772,-1223.13,0.00016998,2]
[365835386,1749949848782,-126.5417806,0.00016998,2]
[365835387,1749949848796,-452.0982194,0.00016998,2]
[365835388,1749949848805,-490.0,0.00016998,2]
[365835389,1749949848815,-2882.85,0.00016998,2]
[365835390,1749949848825,-1341.07,0.00016998,2]
[365835391,1749949848835,-490.0,0.00016998,2]
[365835392,1749949848845,-277.21434969,0.00016998,2]
[365835393,1749949848855,-490.0,0.00016998,2]
[365835394,1749949848983,-490.0,0.00016998,2]
[365835395,1749949848992,-817.65,0.00016998,2]
[365835396,1749949849002,-1112.33,0.00016998,2]
[365835397,1749949849012,-490.0,0.00016998,2]
[365835398,1749949849022,-490.0,0.00016998,2]
[365835399,1749949849031,-490.0,0.00016998,2]
[365835400,1749949849041,-490.0,0.00016998,2]
[365835401,1749949849051,-789.95,0.00016998,2]
[365835402,1749949849062,-1465.64,0.00016998,2]
[365835403,1749949849072,-490.55621267,0.00016998,2]
[365835404,1749949849082,-490.0,0.00016998,2]
[365835405,1749949849092,-490.0,0.00016998,2]
[365835406,1749949849102,-490.0,0.00016998,2]
[365835407,1749949849112,-2418.04,0.00016998,2]
[365835408,1749949849122,-490.0,0.00016998,2]
[365835409,1749949849131,-490.0,0.00016998,2]
[365835410,1749949849141,-490.0,0.00016998,2]
[365835411,1749949849150,-741.9,0.00016998,2]
[365835412,1749949849160,-500.0,0.00016998,2]
[365835413,1749949849169,-490.0,0.00016998,2]
[365835414,1749949849178,-490.0,0.00016998,2]
[365835415,1749949849188,-451.66909382,0.00016998,2]
[365835416,1749949849198,-928.82,0.00016998,2]
[365835417,1749949849207,-2054.55,0.00016998,2]
[365835418,1749949849217,-490.0,0.00016998,2]
[365835419,1749949849227,-1020.48,0.00016998,2]
[365835420,1749949849236,-1706.17,0.00016998,2]
[365835421,1749949849246,-490.0,0.00016998,2]
[365835422,1749949849256,-490.0,0.00016998,2]
[365835423,1749949849266,-490.0,0.00016998,2]
[365835424,1749949849276,-555.3694787,0.00016998,2]
[365835425,1749949849287,-490.0,0.00016998,2]
[365835426,1749949849296,-490.0,0.00016998,2]
[365835427,1749949849305,-490.0,0.00016998,2]
[365835428,1749949849315,-490.0,0.00016998,2]
[365835429,1749949849327,-490.0,0.00016998,2]
[365835430,1749949849336,-687.04,0.00016998,2]
[365835431,1749949849346,-490.0,0.00016998,2]
[365835432,1749949849356,-1351.49,0.00016998,2]
[365835433,1749949849365,-493.72941215,0.00016998,2]
[365835434,1749949849375,-490.0,0.00016998,2]
[365835435,1749949849384,-883.21,0.00016998,2]
[365835436,1749949849393,-490.0,0.00016998,2]
[365835437,1749949849403,-490.0,0.00016998,2]
[365835438,1749949849414,-946.96,0.00016998,2]
[365835439,1749949849423,-1921.65,0.00016998,2]
[365835440,1749949849433,-1148.89,0.00016998,2]
[365835441,1749949849442,-490.0,0.00016998,2]
[365835442,1749949849451,-490.0,0.00016998,2]
[365835443,1749949849460,-2321.23,0.00016998,2]
[365835444,1749949849470,-403.87508736,0.00016998,2]
[365835445,1749949849479,-490.0,0.00016998,2]
[365835446,1749949849488,-1868.68,0.00016998,2]
[365835447,1749949849497,-490.0,0.00016998,2]
[365835448,1749949849507,-490.0,0.00016998,2]
[365835449,1749949849517,-490.0,0.00016998,2]
[365835450,1749949849526,-2432.35,0.00016998,2]
[365835451,1749949849536,-490.0,0.00016998,2]
[365835452,1749949849546,-490.0,0.00016998,2]
[365835453,1749949849555,-490.0,0.00016998,2]
[365835454,1749949849563,-490.0,0.00016998,2]
[365835455,1749949849573,-1591.0,0.00016998,2]
[365835456,1749949849582,-490.0,0.00016998,2]
[365835457,1749949849592,-490.0,0.00016998,2]
[365835458,1749949849601,-2186.77,0.00016998,2]
[365835459,1749949849610,-2757.71,0.00016998,2]
[365835460,1749949849619,-490.0,0.00016998,2]
[365835461,1749949849628,-490.0,0.00016998,2]
[365835462,1749949849637,-490.0,0.00016998,2]
[365835463,1749949849647,-4082.17,0.00016998,2]
[365835464,1749949849656,-246.88363293,0.00016998,2]
[365835465,1749949849665,-490.0,0.00016998,2]
[365835466,1749949849674,-2803.0,0.00016998,2]
[365835467,1749949849683,-490.0,0.00016998,2]
[365835468,1749949849693,-490.0,0.00016998,2]
[365835469,1749949849702,-490.0,0.00016998,2]
[365835470,1749949849711,-490.0,0.00016998,2]
[365835471,1749949849720,-490.0,0.00016998,2]
[365835472,1749949849729,-490.0,0.00016998,2]
[365835473,1749949849738,-490.0,0.00016998,2]
[365835474,1749949849747,-707.77,0.00016998,2]
[365835475,1749949849757,-490.0,0.00016998,2]
[365835476,1749949849766,-490.0,0.00016998,2]
[365835477,1749949849775,-490.0,0.00016998,2]
[365835478,1749949849785,-2823.3,0.00016998,2]
[365835479,1749949849795,-490.0,0.00016998,2]
[365835480,1749949849804,-490.0,0.00016998,2]
[365835481,1749949849813,-490.0,0.00016998,2]
[365835482,1749949849823,-4389.41,0.00016998,2]
[365835483,1749949849832,-760.18,0.00016998,2]
[365835484,1749949849841,-532.05,0.00016998,2]
[365835485,1749949849850,-2652.22,0.00016998,2]
[365835486,1749949849859,-490.0,0.00016998,2]
[365835487,1749949849868,-490.0,0.00016998,2]
[365835488,1749949849877,-808.47,0.00016998,2]
[365835489,1749949849886,-490.0,0.00016998,2]
[365835490,1749949849896,-490.0,0.00016998,2]
[365835491,1749949849905,-490.0,0.00016998,2]
[365835492,1749949849915,-490.0,0.00016998,2]
[365835493,1749949849925,-5267.88,0.00016998,2]
[365835494,1749949849934,-599.97,0.00016998,2]
[365835495,1749949849943,-490.0,0.00016998,2]
[365835496,1749949849952,-490.0,0.00016998,2]
[365835497,1749949849966,-3088.31,0.00016998,2]
[365835498,1749949849977,-158.075151,0.00016998,2]
[365835499,1749949849986,-4480.72,0.00016998,2]
[365835500,1749949849997,-490.0,0.00016998,2]
[365835501,1749949850006,-893.34,0.00016998,2]
[365835502,1749949850017,-1985.71,0.00016998,2]
[365835503,1749949850027,-602.17,0.00016998,2]
[365835504,1749949850038,-490.0,0.00016998,2]
[365835505,1749949850047,-232.920801,0.00016998,2]
[365835506,1749949850056,-2145.6,0.00016998,2]
[365835507,1749949850067,-490.0,0.00016998,2]
[365835508,1749949850076,-490.0,0.00016998,2]
[365835509,1749949850085,-2735.85,0.00016998,2]
[365835510,1749949850094,-2493.87,0.00016998,2]
[365835511,1749949850103,-490.0,0.00016998,2]
[365835512,1749949850112,-3859.88,0.00016998,2]
[365835513,1749949850121,-3499.66,0.00016998,2]
[365835514,1749949850129,-490.0,0.00016998,2]
[365835515,1749949850138,-490.0,0.00016998,2]
[365835516,1749949850147,-729.27,0.00016998,2]